bitfinex/quotes_ETHUSD_20260228
["timestamp","ask_amount","ask_price","bid_price","bid_amount"]
[1772252889009,1.77189179,1926.7,1926.5,0.05232891]
[1772252889010,0.001,1926.7,1926.5,0.05232891]
[1772252891304,0.001,1926.9,1926.7,0.05232891]
[1772252898012,0.47483554,1926.9,1926.4,0.05232891]
[1772252898212,0.47483554,1926.9,1926.5,0.05232891]
[1772252898712,0.001,1926.9,1926.6,0.05232891]
[1772252904901,0.001,1926.9,1926.7,0.05232891]
[1772252905230,0.001,1926.9,1926.8,0.05232891]
[1772252908015,0.47483554,1926.9,1926.7,0.0011]
[1772252918047,0.47483554,1926.9,1926.8,0.0011]
[1772252927840,0.48023537,1926.8,1926.7,0.0011]
[1772252928346,0.48123537,1926.9,1926.7,0.0011]
[1772252929858,0.48123537,1926.9,1926.8,0.0011]
[1772252934258,1.77865609,1926.9,1926.8,0.0011]
[1772252934463,0.48023537,1926.8,1926.5,0.0011]
[1772252942282,0.48023537,1926.8,1926.6,0.0011]
[1772252942485,0.001,1926.7,1926.6,0.0011]
[1772252946187,0.48123537,1926.7,1926.6,0.0011]
[1772252947259,3.02315934,1928.7,1926.7,0.05352891]
[1772252947463,0.004,1928.2,1928.0,0.58837828]
[1772252947771,5.18431727,1928.9,1927.7,0.89452891]
[1772252947772,0.48423537,1928.1,1927.7,0.89452891]
[1772252947980,5.18431727,1928.9,1927.7,0.89452891]
[1772252947981,0.48023537,1928.7,1927.7,0.89452891]
[1772252948275,0.48023537,1928.4,1927.7,0.841]
[1772252948476,0.48023537,1928.4,1927.8,0.4809475]
[1772252949081,0.48023537,1928.4,1927.9,1.06932578]
[1772252949281,1.591,1928.7,1927.9,1.06932578]
[1772252949282,0.48023537,1928.2,1927.9,1.06932578]
[1772252951487,0.45401932,1930.6,1929.1,0.48001529]
[1772252951654,0.45401932,1930.6,1929.6,12.52549]
[1772252951997,0.00153886,1931.0,1930.5,0.58837828]
[1772252951998,0.45401932,1930.9,1930.5,0.58837828]
[1772252952287,0.45401932,1930.9,1930.4,1.423]
[1772252952502,5.17793839,1931.3,1930.4,1.423]
[1772252952503,0.45401932,1931.6,1930.8,0.58837828]
[1772252952700,0.45401932,1931.6,1931.1,0.58837828]
[1772252953347,0.45401932,1931.6,1931.0,1.95147177]
[1772252953553,0.45401932,1931.6,1930.9,0.48001529]
[1772252953554,0.45401932,1931.6,1930.9,1.77469912]
[1772252954460,1.74829963,1931.6,1930.9,1.77469912]
[1772252954775,0.45401932,1931.5,1930.7,4.79232172]
[1772252955585,1.74841716,1931.4,1930.7,4.79232172]
[1772252955988,0.45401932,1931.3,1930.7,1.29484995]
[1772252956174,0.45401932,1931.3,1930.5,1.29496008]
[1772252956362,0.45401932,1931.3,1930.4,1.77503716]
[1772252956565,3.79247177,1931.7,1930.4,1.77503716]
[1772252956566,7.29171251,1934.4,1931.6,0.48001529]
[1772252956784,1.29245721,1934.3,1933.6,6.75859]
[1772252956969,1.29245721,1934.3,1933.4,15.39232356]
[1772252957286,1.95147177,1933.5,1932.5,1.569]
[1772252957511,1.29293935,1933.6,1932.5,0.84]
[1772252957800,1.29293935,1933.6,1933.0,0.00153886]
[1772252958158,1.29293935,1933.6,1932.3,0.48001529]
[1772252958488,0.05306544,1933.4,1932.0,2.61550486]
[1772252958674,0.05306544,1933.0,1932.0,2.61550486]
[1772252959473,1.29339334,1932.9,1932.0,1.77550486]
[1772252959673,1.29339334,1932.9,1932.0,3.34250486]
[1772252959869,0.05306544,1932.8,1932.0,0.00153886]
[1772252960290,0.05306544,1932.8,1931.7,1.7741651]
[1772252960764,0.05306544,1932.8,1931.7,1.29414981]
[1772252961087,0.05306544,1932.5,1931.4,1.77441018]
[1772252961290,0.05306544,1932.5,1931.2,1.29453189]
[1772252961789,0.05306544,1932.2,1931.2,1.29453189]
[1772252962703,0.05306544,1932.2,1931.1,0.48001529]
[1772252962994,0.05306544,1932.2,1931.0,0.00153886]
[1772252962995,0.05306544,1932.1,1931.0,0.00153886]
[1772252963563,1.34726226,1931.7,1931.0,0.00153886]
[1772252964674,1.34726226,1931.7,1929.0,0.00153886]
[1772252964675,0.98035491,1930.3,1929.0,0.00153886]
[1772252964967,0.05152658,1930.5,1929.4,3.72722666]
[1772252965268,0.05152658,1930.5,1929.4,1.77575489]
[1772252965687,1.29506837,1930.4,1929.4,1.77575489]
[1772252965897,1.29506837,1930.4,1929.4,0.48001529]
[1772252966286,1.29506837,1930.4,1929.4,1.77574787]
[1772252966470,1.34656945,1930.5,1929.5,0.001]
[1772252966795,1.19656945,1930.5,1929.5,0.48101529]
[1772252967695,1.19656945,1930.5,1929.5,0.001]
[1772252967867,1.95147177,1930.4,1929.5,0.001]
[1772252969508,1.19656945,1930.5,1929.5,0.001]
[1772252970005,1.19656945,1930.5,1929.4,0.001]
[1772252970006,3.988228,1929.0,1928.0,0.00153886]
[1772252970302,0.065536,1928.9,1928.1,0.00153886]
[1772252970470,2.199536,1928.9,1928.1,0.00153886]
[1772252970877,1.95147177,1928.7,1928.1,0.00153886]
[1772252971275,1.95147177,1928.7,1928.0,0.00153886]
[1772252971780,1.29627709,1928.6,1928.0,0.00153886]
[1772252973106,3.24774886,1928.6,1928.0,0.00153886]
[1772252973275,3.24774886,1928.6,1927.4,1.79708165]
[1772252973603,3.24774886,1928.6,1927.4,0.5]
[1772252975006,0.585436,1928.5,1927.0,0.00153886]
[1772252975220,2.12188364,1927.1,1926.0,1e-08]
[1772252975511,0.51955532,1926.8,1925.4,0.48001529]
[1772252975700,1.2975554,1926.7,1925.5,1.29836406]
[1772252975884,0.84,1926.6,1925.5,1.77837935]
[1772252976273,2.134,1926.5,1925.5,1.77837935]
[1772252977386,1.95147177,1926.6,1925.5,0.48001529]
[1772252977704,1.29775747,1926.4,1925.5,1.77835456]
[1772252978686,1.29775747,1926.4,1925.5,1.77834877]
[1772252979790,1.29775747,1926.4,1925.6,0.001]
[1772252980711,1.29772064,1926.5,1925.6,0.4667249]
[1772252981890,5.19067746,1926.6,1925.6,0.4667249]
[1772252982091,5.19067746,1926.6,1925.6,1.76497204]
[1772252982292,7.31967746,1926.6,1925.6,1.76497204]
[1772252982611,5.19067746,1926.6,1925.7,0.45133452]
[1772252983394,0.54319759,1926.5,1925.0,0.00153886]
[1772252983713,5.19067746,1926.6,1924.0,1.29936355]
[1772252983714,0.47766159,1924.8,1924.0,1.29936355]
[1772252983881,1.95147177,1925.1,1924.0,1e-08]
[1772252983882,5.67239483,1925.1,1924.0,1e-08]
[1772252984087,1.29870129,1925.0,1924.0,1e-08]
[1772252984282,2.141,1924.9,1924.0,1e-08]
[1772252984782,2.141,1924.8,1924.0,1e-08]
[1772252985603,0.47766159,1924.7,1924.0,1e-08]
[1772252985811,2.14,1924.6,1924.0,1e-08]
[1772252986003,1.29903871,1924.5,1924.0,1e-08]
[1772252986402,1.29900969,1924.6,1924.0,1e-08]
[1772252986914,0.47766159,1925.0,1924.0,1e-08]
[1772252987096,1.29880541,1924.9,1924.0,1e-08]
[1772252987683,0.47766159,1925.0,1924.0,1e-08]
[1772252988012,2.61716052,1925.3,1924.0,1.75071082]
[1772252988214,0.47766159,1925.2,1924.0,1.75071082]
[1772252988720,0.47766159,1925.2,1924.0,1.2993763]
[1772252988909,2.023,1925.2,1924.1,0.45133452]
[1772252989619,1.29849893,1925.3,1922.5,0.45133452]
[1772252989620,2.58178556,1923.9,1922.5,0.45133452]
[1772252989816,2.64098775,1924.2,1922.5,0.45133452]
[1772252989817,0.841,1924.2,1922.8,9.925989]
[1772252989987,1.29910621,1924.4,1923.1,0.45133452]
[1772252990188,0.00153886,1924.0,1923.1,0.45133452]
[1772252990390,0.00153886,1924.0,1923.1,2.03433452]
[1772252990589,0.00153886,1924.0,1923.2,0.45133452]
[1772252992219,0.00153886,1924.0,1923.3,1.29984921]
[1772252992791,0.00153886,1924.0,1923.2,1.75120565]
[1772252992993,0.00153886,1924.0,1923.3,0.0011]
[1772252994918,0.00153886,1924.0,1923.3,0.45243452]
[1772252995628,2.58178556,1921.9,1921.8,0.10208165]
[1772252995794,2.16332616,1923.0,1921.8,0.60108165]
[1772252996001,2.16332616,1923.0,1922.2,0.5]
[1772252996002,0.00153886,1923.0,1922.2,0.5]
[1772252996222,0.065536,1923.9,1922.4,0.40030769]
[1772252996405,0.065536,1923.9,1922.4,0.35030769]
[1772252996406,0.09969231,1923.8,1922.4,0.35030769]
[1772252996598,1.29957893,1923.7,1922.3,1.22618067]
[1772252997222,0.47766159,1923.6,1922.3,0.45133452]
[1772252997724,0.47766159,1923.6,1922.4,0.45133452]
[1772252998999,0.47766159,1923.8,1922.5,14.73607]
[1772252999229,9.81605,1923.1,1922.3,0.45133452]
[1772252999733,9.81605,1923.5,1922.5,0.45133452]
[1772252999929,1.29944383,1923.9,1922.7,0.45133452]
[1772253000227,9.81605,1923.5,1922.7,0.45133452]
[1772253000532,5.19912061,1924.0,1922.6,1.591]
[1772253000533,9.81605,1923.8,1922.9,0.45133452]
[1772253000826,9.81605,1923.9,1923.1,0.45133452]
[1772253001031,9.81605,1923.9,1922.0,0.00153886]
[1772253001200,1.29946723,1923.9,1922.5,0.45133452]
[1772253001399,9.81605,1923.7,1922.9,0.45133452]
[1772253001609,9.81605,1923.7,1923.0,0.45133452]
[1772253001808,9.81605,1923.8,1923.0,0.45133452]
[1772253002632,9.81605,1923.6,1923.0,0.45133452]
[1772253003126,1.29971406,1923.5,1923.0,0.45133452]
[1772253003731,1.30092596,1924.0,1923.2,0.45133452]
[1772253004039,1.30092596,1924.0,1922.8,0.45133452]
[1772253005208,0.00153886,1924.0,1922.8,0.45133452]
[1772253005603,0.47920045,1924.0,1922.8,0.45133452]
[1772253005798,0.00153886,1924.0,1923.1,0.0011]
[1772253006636,0.47766159,1923.9,1923.1,0.0011]
[1772253006806,0.00153886,1924.0,1922.8,0.0011]
[1772253006807,2.16332616,1923.6,1922.8,0.0011]
[1772253007009,2.27766159,1923.7,1922.8,0.0011]
[1772253007309,1.29964649,1923.6,1922.8,0.0011]
[1772253007502,0.00153886,1924.0,1922.8,0.45243452]
[1772253007503,1.29944383,1923.9,1922.8,0.45243452]
[1772253008030,0.47766159,1923.8,1921.7,0.003]
[1772253008202,1.29944383,1923.9,1921.7,0.003]
[1772253008203,0.47766159,1923.6,1922.1,0.45133452]
[1772253008407,0.47766159,1923.6,1922.2,0.45133452]
[1772253009012,0.065536,1923.8,1922.2,0.45133452]
[1772253009235,1.29957893,1923.7,1922.4,0.45133452]
[1772253009432,1.77724052,1923.7,1922.4,0.45133452]
[1772253009954,1.77724052,1923.7,1922.5,0.45133452]
[1772253011137,1.77724052,1923.7,1922.6,1.30032247]
[1772253011813,1.77724052,1923.7,1922.6,1.7699061]
[1772253012342,1.29957893,1923.7,1922.7,0.46958363]
[1772253012578,3.93795112,1923.6,1922.1,0.065536]
[1772253012841,1.29957893,1923.7,1922.3,0.46958363]
[1772253012842,0.52843142,1923.5,1922.3,0.46958363]
[1772253013014,0.46289542,1923.5,1922.3,0.46958363]
[1772253013222,1.29978163,1923.4,1922.3,1.77007091]
[1772253013434,1.29978163,1923.4,1922.3,0.46958363]
[1772253013615,1.29978163,1923.4,1922.3,1.77010169]
[1772253014330,1.76267705,1923.4,1922.3,0.46958363]
[1772253014535,1.96897556,1922.7,1922.0,0.00153886]
[1772253014865,1.96897556,1923.0,1922.0,0.00153886]
[1772253015151,2.169,1922.9,1922.0,0.00153886]
[1772253015650,5.20047844,1923.1,1922.0,0.00153886]
[1772253016412,0.065536,1923.1,1922.0,0.00153886]
[1772253016615,5.20016479,1923.2,1922.0,0.00153886]
[1772253017417,1.2999168,1923.3,1922.0,0.50153886]
[1772253017830,1.2999168,1923.3,1922.0,2.09753886]
[1772253018142,0.065536,1923.2,1922.0,0.00153886]
[1772253018328,1.2999168,1923.3,1922.0,0.00153886]
[1772253018516,1.2999168,1923.3,1922.4,0.0011]
[1772253018919,1.2999168,1923.3,1922.0,0.00153886]
[1772253019125,0.065536,1923.2,1922.3,0.0011]
[1772253019327,1.2999844,1923.1,1922.3,0.0011]
[1772253020910,1.2999844,1923.1,1922.1,0.0011]
[1772253021116,0.54215416,1923.0,1921.8,0.10108165]
[1772253021315,3.46711961,1922.9,1921.8,0.10108165]
[1772253021715,1.30011961,1922.9,1921.8,0.10108165]
[1772253022250,2.561796,1922.6,1921.3,101.06848787]
[1772253022551,2.167,1922.5,1921.3,101.06848787]
[1772253022744,0.065536,1922.6,1921.3,101.06848787]
[1772253022915,0.065536,1922.6,1921.3,101.56848787]
[1772253023122,2.169,1922.7,1921.3,101.56848787]
[1772253023421,1.30032247,1922.6,1921.3,101.56848787]
[1772253024157,1.30032247,1922.6,1921.3,99.76730197]
[1772253024319,1.30032247,1922.6,1921.3,101.06849947]
[1772253025324,1.30032247,1922.6,1921.3,101.56849947]
[1772253025524,1.30032247,1922.6,1921.3,100.26730197]
[1772253025735,1.30032247,1922.6,1921.3,101.56850159]
[1772253025945,1.30032247,1922.6,1921.3,100.26730197]
[1772253026121,1.30032247,1922.6,1921.3,101.56849241]
[1772253026320,1.30032247,1922.6,1921.3,100.26730197]
[1772253026928,3.46332247,1922.6,1921.3,100.26730197]
[1772253027720,3.46332247,1922.6,1921.4,0.5]
[1772253028133,3.46332247,1922.6,1921.3,101.06850402]
[1772253028352,3.46332247,1922.6,1921.3,50.66451572]
[1772253028353,2.52254673,1921.8,1921.3,50.66451572]
[1772253028651,2.52254673,1921.8,1921.0,0.00153886]
[1772253028857,2.52254673,1921.8,1921.1,24.0]
[1772253029519,2.52254673,1921.8,1921.1,16.0]
[1772253029723,1.30093146,1921.7,1921.0,0.00153886]
[1772253029926,1.30093146,1921.7,1921.0,16.00153886]
[1772253030262,6.009421,1921.5,1920.7,14.7139405]
[1772253030421,1.30093146,1921.7,1920.4,1.9552283]
[1772253030762,7.72627259,1921.8,1921.2,0.0011]
[1772253030763,3.8234592,1921.8,1921.2,0.0011]
[1772253031338,0.065536,1921.7,1921.0,0.0011]
[1772253031556,3.8234592,1921.8,1921.0,0.0011]
[1772253032629,0.065536,1921.7,1921.0,8.0]
[1772253033126,0.065536,1921.7,1920.4,1.4552162]
[1772253033446,0.065536,1921.7,1920.4,0.1534213]
[1772253033656,0.065536,1921.3,1920.4,0.1534213]
[1772253034033,1.30127003,1921.2,1920.4,0.1534213]
[1772253035954,1.30147326,1920.9,1920.4,0.1534213]
[1772253036523,1.30147326,1920.9,1920.4,8.1534213]
[1772253037541,1.30147326,1920.9,1920.4,0.1534213]
[1772253037735,1.30147326,1920.9,1920.4,0.0934213]
[1772253039065,1.30147326,1920.9,1920.0,0.00153886]
[1772253039271,1.30147326,1920.9,1920.0,1.30361835]
[1772253039567,1.30147326,1920.9,1920.0,0.00153886]
[1772253041482,2.76445778,1920.7,1920.0,0.00153886]
[1772253041777,2.76445778,1920.7,1919.4,0.5]
[1772253041778,3.16445778,1920.4,1919.4,0.5]
[1772253041956,0.4,1920.3,1919.2,1.30256048]
[1772253042676,1.70194771,1920.2,1919.2,1.30256048]
[1772253042981,0.39846114,1919.1,1918.7,49.967232]
[1772253043148,5.52891556,1919.4,1918.3,0.47781198]
[1772253043149,2.76445778,1919.4,1918.3,0.47781198]
[1772253043470,3.50845778,1919.4,1918.3,0.47781198]
[1772253043673,0.744,1919.4,1918.3,0.47781198]
[1772253043884,2.64706442,1919.9,1918.5,0.47781198]
[1772253044038,0.744,1919.8,1918.5,0.47781198]
[1772253044446,1.30228681,1919.7,1918.5,0.47781198]
[1772253045084,0.744,1919.6,1918.5,0.47781198]
[1772253046359,5.21068612,1920.0,1918.7,0.47781198]
[1772253046360,0.00153886,1920.0,1918.7,0.47781198]
[1772253046679,0.00153886,1920.0,1918.9,0.47781198]
[1772253046680,2.04763981,1920.0,1918.9,0.47781198]
[1772253047054,2.04763981,1920.0,1919.7,0.003]
[1772253047378,0.744,1919.9,1919.2,0.47781198]
[1772253048579,1.30363981,1920.0,1919.2,0.47781198]
[1772253048882,2.04763981,1920.0,1919.3,0.47781198]
[1772253050290,0.744,1919.9,1919.3,2.11681198]
[1772253050977,1.30221898,1919.8,1919.3,2.11681198]
[1772253051181,0.744,1919.9,1919.3,2.11681198]
[1772253051355,0.744,1919.9,1919.3,3.41935935]
[1772253051760,2.04616365,1919.9,1919.3,2.11681198]
[1772253051963,0.744,1919.9,1919.3,3.41936855]
[1772253052371,0.744,1919.8,1919.3,0.47781198]
[1772253052588,0.744,1919.8,1919.3,2.11581198]
[1772253053067,2.04628327,1919.8,1919.3,2.11581198]
[1772253053597,0.744,1919.8,1919.3,2.11581198]
[1772253053814,2.04622268,1919.8,1919.3,2.11581198]
[1772253053970,0.744,1919.8,1919.3,2.11581198]
[1772253054166,2.04622609,1919.8,1919.3,2.11581198]
[1772253054964,0.744,1919.8,1919.4,0.47781198]
[1772253055392,0.744,1919.8,1919.4,1.7803018]
[1772253056268,0.745,1919.8,1919.4,1.7803018]
[1772253056670,0.695,1919.8,1919.4,1.7803018]
[1772253057074,0.695,1919.8,1919.5,0.47781198]
[1772253057075,0.195,1919.8,1919.5,0.47781198]
[1772253057384,0.195,1919.8,1919.5,1.78023071]
[1772253057385,0.001,1919.8,1919.5,1.78023071]
[1772253057761,0.00153886,1920.0,1919.5,1.78023071]
[1772253057762,0.00153886,1920.0,1919.5,1.78016918]
[1772253058087,0.12019969,1920.0,1919.6,0.47781198]
[1772253058890,0.12019969,1920.0,1919.7,1.634]
[1772253060493,0.12019969,1920.0,1919.7,3.41406228]
[1772253060892,0.00153886,1920.0,1919.8,0.47781198]
[1772253061192,0.00153886,1920.0,1919.8,1.77997788]
[1772253063400,0.12019969,1920.0,1919.9,1.635]
[1772253063897,1.30165986,1920.7,1919.9,2.11281198]
[1772253064214,1.30158623,1920.8,1920.0,0.47781198]
[1772253065168,1.30158623,1920.8,1920.1,1.30201552]
[1772253065596,1.30158623,1920.8,1920.0,1.77985205]
[1772253066569,1.30158623,1920.8,1920.1,0.47781198]
[1772253067405,5.20597181,1920.9,1920.2,1.30194771]
[1772253067773,1.30294542,1921.0,1920.3,3.24130447]
[1772253067974,1.30294542,1921.0,1920.4,1.63]
[1772253068976,0.001,1920.7,1920.4,2.10781198]
[1772253069196,0.00153886,1921.0,1920.4,2.10781198]
[1772253069397,0.00153886,1921.0,1920.5,1.30174433]
[1772253069785,0.46057227,1921.0,1920.0,0.47781198]
[1772253069987,0.45903341,1920.8,1920.0,1.629]
[1772253071385,0.47028823,1920.6,1920.0,1.629]
[1772253073479,1.30174433,1920.5,1920.0,1.629]
[1772253074104,1.30171357,1920.6,1920.0,2.93107731]
[1772253074277,5.20616607,1920.8,1920.0,1.629]
[1772253074476,5.6764543,1920.8,1920.0,1.629]
[1772253074693,5.6764543,1920.8,1920.0,2.93106628]
[1772253075011,5.6764543,1920.8,1920.0,1.629]
[1772253075223,0.47028823,1920.7,1920.0,1.629]
[1772253075387,0.47028823,1920.7,1920.0,2.93107605]
[1772253075708,1.30167655,1920.6,1920.0,1.629]
[1772253075880,1.30167655,1920.6,1920.0,2.93106348]
[1772253076505,1.30167655,1920.6,1920.0,1.629]
[1772253078064,0.47028823,1920.5,1919.8,0.0011]
[1772253078201,0.47028823,1920.2,1919.6,0.0011]
[1772253078708,0.47028823,1920.5,1919.6,2.10361853]
[1772253078911,0.47028823,1920.5,1919.6,1.6211]
[1772253079583,0.47028823,1920.3,1919.6,0.0011]
[1772253081184,0.47028823,1920.3,1919.7,0.0011]
[1772253081380,1.30181212,1920.4,1919.7,0.0011]
[1772253081585,1.30281212,1920.4,1919.7,0.0011]
[1772253081792,0.001,1920.4,1919.7,1.30338681]
[1772253083322,0.001,1920.4,1919.0,0.00263886]
[1772253083323,0.47028823,1919.8,1919.0,0.00263886]
[1772253083495,2.44508602,1919.6,1918.6,1.78550498]
[1772253083692,1.3024225,1919.5,1918.6,1.78550498]
[1772253083896,1.30226761,1919.8,1918.8,2.45731632]
[1772253084113,1.30226761,1919.8,1918.8,0.48251853]
[1772253084314,0.47028823,1919.7,1918.8,0.48251853]
[1772253084627,1.30226761,1919.8,1918.2,3.03299593]
[1772253084628,0.47028823,1919.4,1918.2,3.03299593]
[1772253084808,0.47028823,1919.1,1918.2,0.48251853]
[1772253085005,0.47028823,1919.1,1918.1,2.91936407]
[1772253085617,0.47028823,1918.8,1918.0,0.00153886]
[1772253085808,1.30296554,1918.7,1918.0,0.00153886]
[1772253086708,1.77325377,1918.7,1918.0,0.00153886]
[1772253086924,0.47028823,1919.0,1918.0,0.48405739]
[1772253087135,1.30281334,1919.0,1918.0,0.48405739]
[1772253087303,1.77310157,1919.0,1918.0,0.48405739]
[1772253087823,1.72310157,1919.0,1918.0,0.48405739]
[1772253088011,0.47028823,1918.9,1918.0,0.48405739]
[1772253088211,0.47028823,1918.9,1918.0,0.00153886]
[1772253089231,0.47028823,1918.9,1918.0,1.30497181]
[1772253089435,0.47028823,1918.9,1918.0,0.00153886]
[1772253089646,2.44508602,1918.9,1918.0,0.00153886]
[1772253089813,1.77318587,1918.8,1918.0,0.00153886]
[1772253090008,0.47028823,1918.7,1918.0,0.00153886]
[1772253090306,0.47028823,1918.4,1917.9,0.0015]
[1772253090511,0.47028823,1918.4,1917.4,1.78035831]
[1772253090724,0.47028823,1918.4,1917.3,1.30389521]
[1772253090933,0.47028823,1918.4,1917.4,0.48251853]
[1772253091241,0.47028823,1918.4,1917.3,1.30389521]
[1772253091937,0.47028823,1918.2,1917.3,1.30389521]
[1772253092442,1.30323724,1918.3,1917.1,1.30405299]
[1772253092443,0.47028823,1918.0,1917.1,1.30405299]
[1772253092739,0.47028823,1918.0,1917.0,0.86376156]
[1772253092926,2.44508602,1917.9,1917.0,2.16787769]
[1772253093133,0.47028823,1917.8,1917.0,2.16787769]
[1772253093330,0.47028823,1917.8,1917.0,0.86376156]
[1772253093924,2.48040145,1917.9,1917.0,2.6503683]
[1772253094124,1.77332169,1918.6,1917.3,0.48251853]
[1772253094437,1.77332169,1918.6,1918.1,0.0011]
[1772253094936,1.30301317,1918.7,1918.1,0.0011]
[1772253095939,0.47028823,1918.7,1918.0,0.0011]
[1772253096332,5.21170965,1918.8,1918.0,0.0011]
[1772253097142,5.68164649,1918.9,1918.0,0.0011]
[1772253097658,7.65644428,1918.9,1918.0,0.0011]
[1772253098151,0.47028823,1918.8,1918.0,0.0011]
[1772253098640,7.18615605,1918.9,1918.0,0.0011]
[1772253098641,5.21135826,1918.9,1918.0,0.0011]
[1772253099030,5.68164649,1918.9,1918.0,0.0011]
[1772253099214,5.21135826,1918.9,1918.0,0.0011]
[1772253099414,0.47028823,1918.8,1918.0,0.0011]
[1772253100148,1.30296554,1918.7,1918.0,0.0011]
[1772253100349,1.76590368,1918.7,1918.0,0.0011]
[1772253100652,0.46293814,1918.6,1918.0,0.0011]
[1772253101143,0.46293814,1918.6,1917.8,0.0011]
[1772253102020,1.76512922,1918.5,1917.8,0.0011]
[1772253103315,0.46202784,1918.4,1917.8,0.0011]
[1772253103535,1.30310138,1918.5,1917.8,0.0011]
[1772253103748,5.67443336,1918.6,1917.8,0.0011]
[1772253104050,1.30310138,1918.5,1917.8,0.0011]
[1772253104249,5.67443336,1918.6,1917.8,0.46623595]
[1772253104250,1.30307546,1918.6,1917.8,0.46623595]
[1772253104755,1.7651033,1918.6,1917.8,0.0011]
[1772253106654,0.001,1918.5,1917.8,0.0011]
[1772253106953,0.46302784,1918.5,1917.8,0.0011]
[1772253107956,0.001,1918.5,1917.8,0.46623595]
[1772253108931,0.001,1918.5,1917.8,1.76980649]
[1772253109652,0.001,1918.5,1917.8,0.0011]
[1772253109827,0.46302784,1918.5,1917.8,0.0011]
[1772253110163,0.001,1918.5,1917.9,0.46513595]
[1772253110360,1.30431603,1919.0,1918.2,0.46513595]
[1772253110655,1.30431603,1919.0,1918.3,1.30323724]
[1772253111153,0.00153886,1919.0,1918.4,0.46513595]
[1772253112437,0.00153886,1919.0,1918.3,1.30323724]
[1772253112880,0.00153886,1919.0,1918.4,0.46513595]
[1772253114135,0.00153886,1919.0,1918.6,0.46513595]
[1772253114369,1.30228888,1919.7,1918.9,0.46513595]
[1772253114748,1.30228888,1919.7,1919.0,1.30276185]
[1772253115146,1.30228888,1919.7,1919.0,1.7678978]
[1772253115345,1.30228888,1919.7,1919.1,0.46513595]
[1772253116843,1.30215115,1919.9,1919.1,1.76778024]
[1772253118249,1.30215115,1919.9,1919.2,0.46513595]
[1772253118843,5.20993311,1920.0,1919.2,3.35671638]
[1772253119044,0.001,1919.6,1919.2,3.35671638]
[1772253119473,1.30362219,1920.0,1919.3,0.46513595]
[1772253119670,0.00153886,1920.0,1919.3,0.46513595]
[1772253120946,0.00153886,1920.0,1919.4,2.05213595]
[1772253121369,0.00153886,1920.0,1919.5,0.46513595]
[1772253122848,0.00153886,1920.0,1919.7,0.46513595]
[1772253123049,0.00153886,1920.0,1919.8,1.76735493]
[1772253123393,0.00153886,1920.0,1919.9,0.46513595]
[1772253123758,0.00153886,1920.0,1919.9,2.05113595]
[1772253124782,0.001,1920.4,1920.0,0.46513595]
[1772253125077,0.001,1920.4,1920.1,1.30201552]
[1772253125277,0.001,1920.4,1920.1,1.76715147]
[1772253126377,0.001,1920.4,1920.1,0.46513595]
[1772253126576,0.001,1920.4,1919.9,1.587]
[1772253126744,0.001,1920.4,1920.0,0.46513595]
[1772253126957,1.30159457,1920.8,1920.0,0.46513595]
[1772253127153,1.30159457,1920.8,1920.0,1.76716659]
[1772253127392,1.76362241,1920.8,1920.0,1.76716659]
[1772253128492,1.76362241,1920.8,1920.0,0.46513595]
[1772253128988,1.76362241,1920.8,1920.0,3.35321147]
[1772253129710,1.76362241,1920.8,1920.0,2.05113595]
[1772253130471,1.76362241,1920.8,1920.0,3.35321911]
[1772253131458,0.001,1920.7,1920.0,2.05113595]
[1772253131660,0.001,1920.7,1920.0,3.35321927]
[1772253132694,0.001,1920.7,1920.2,0.48724909]
[1772253133396,0.001,1920.7,1920.1,1.583]
[1772253133580,0.001,1920.7,1920.1,2.88500442]
[1772253133787,0.001,1920.7,1920.1,1.583]
[1772253134399,0.001,1920.7,1920.1,2.88501449]
[1772253134603,0.001,1920.7,1920.1,1.583]
[1772253136205,0.001,1920.7,1920.1,3.37226397]
[1772253136387,0.001,1920.7,1920.1,2.07024909]
[1772253137678,0.001,1920.7,1920.1,1.583]
[1772253137990,0.48136313,1920.7,1920.1,1.583]
[1772253138802,1.30167655,1920.6,1920.1,1.583]
[1772253139478,1.30167655,1920.6,1920.1,2.88501091]
[1772253140306,0.48136313,1920.7,1920.1,2.88501091]
[1772253140614,1.30264926,1920.7,1920.1,3.37226]
[1772253140915,1.30264926,1920.7,1920.1,2.07024909]
[1772253140916,0.001,1920.7,1920.1,2.07024909]
[1772253141278,0.001,1920.7,1920.1,3.37226188]
[1772253141689,0.001,1920.7,1920.2,0.48724909]
[1772253143118,0.001,1920.7,1920.2,1.78917375]
[1772253143497,0.001,1920.7,1920.2,1.79027375]
[1772253143692,0.001,1920.6,1920.2,1.79027375]
[1772253143902,0.001,1920.6,1920.3,0.48724909]
[1772253145912,0.001,1920.6,1920.3,1.78906385]
[1772253146089,0.001,1920.6,1920.4,0.48724909]
[1772253146708,0.00153886,1921.0,1920.5,2.06424909]
[1772253147920,0.48190199,1921.0,1920.5,1.577]
[1772253148214,1.30147326,1920.9,1920.5,1.577]
[1772253149616,1.30147326,1920.9,1920.5,1.575]
[1772253149991,0.00153886,1921.0,1920.5,3.36398401]
[1772253150499,0.00153886,1921.0,1920.5,2.06224909]
[1772253150817,0.00153886,1921.0,1920.6,0.48724909]
[1772253152036,0.00153886,1921.0,1920.7,1.78885787]
[1772253153523,0.00153886,1921.0,1920.8,0.48724909]
[1772253154303,0.00153886,1921.0,1920.9,1.576]
[1772253155200,0.00153886,1921.0,1920.9,2.06324909]
[1772253155518,1.30124067,1921.3,1920.9,2.06324909]
[1772253155705,5.20436663,1921.5,1920.9,2.06324909]
[1772253156213,5.68472976,1921.5,1920.9,2.06324909]
[1772253156414,0.001,1921.6,1921.0,0.48724909]
[1772253156593,0.001,1921.6,1921.1,0.48724909]
[1772253157791,0.001,1921.6,1921.2,1.574]
[1772253158516,0.001,1921.6,1921.2,2.06124909]
[1772253158714,0.001,1921.6,1921.3,0.48724909]
[1772253160107,0.48190199,1922.0,1921.2,2.06124909]
[1772253160648,0.48190199,1922.0,1921.3,1.573]
[1772253163319,1.30079608,1921.9,1921.3,2.06581787]
[1772253163528,1.75189057,1921.9,1921.3,2.06581787]
[1772253166833,1.75189057,1921.9,1921.3,3.36701569]
[1772253167020,0.00153886,1922.0,1921.4,0.49281787]
[1772253167225,1.75337072,1922.0,1921.4,0.49281787]
[1772253167725,0.45109449,1921.9,1921.3,1.30120231]
[1772253167926,1.30227623,1922.0,1921.4,2.06081787]
[1772253168948,0.001,1921.8,1921.4,2.06081787]
[1772253170318,0.45209449,1921.8,1921.2,0.49281787]
[1772253170524,0.45209449,1921.8,1921.2,2.05981787]
[1772253171220,0.45209449,1921.8,1921.2,3.36107273]